[Event "FIDE Women World Rapid 2024"]
[Site "New York"]
[Date "2024.12.27"]
[Round "7.5"]
[White "Dronavalli, Harika"]
[Black "Zhu, Chen"]
[Result "1-0"]
[ECO "A20"]
[WhiteElo "2489"]
[BlackElo "2423"]
[Annotator "ChessBase"]
[PlyCount "117"]
[EventDate "2024.12.14"]
[EventType "swiss"]
[EventCountry "USA"]
[SourceTitle "playchess.com"]
[Source "ChessBase"]
[SourceQuality "1"]
[TimeControl "900+10"]

1. Nf3 {[%emt 0:00:02]} d6 {[%emt 0:00:07]} 2. g3 {[%emt 0:00:44]} e5 {[%emt 0:00:09]} 3. Bg2 {[%emt 0:00:02]} g6 {[%emt 0:00:29]} 4. c4 {[%emt 0:00:50]} Bg7 {[%emt 0:00:14]} 5. d4 {[%emt 0:00:19]} e4 {[%emt 0:00:13]} 6. Ng5 {[%emt 0:00:06]} f5 {[%emt 0:00:06]} 7. h4 {[%emt 0:00:08]} h6 {[%emt 0:00:36]} 8. Nh3 {[%emt 0:00:05]} c6 {[%emt 0:00:12]} 9. Nf4 {[%emt 0:00:22]} Ne7 {[%emt 0:00:10]} 10. d5 {[%emt 0:03:24]} Na6 {[%emt 0:00:42]} 11. Nc3 {[%emt 0:00:12]} O-O {[%emt 0:02:24]} 12. Be3 {[%emt 0:00:23]} c5 {[%emt 0:00:03]} 13. Qd2 {[%emt 0:00:20]} Nc7 {[%emt 0:00:47]} 14. f3 {[%emt 0:00:57]} exf3 {[%emt 0:00:10]} 15. Bxf3 {[%emt 0:00:01]} Kh7 {[%emt 0:00:44]} 16. Qd3 {[%emt 0:01:12]} Qe8 {[%emt 0:00:28]} 17. Bd2 {[%emt 0:01:28]} a6 {[%emt 0:00:40]} 18. a4 {[%emt 0:00:27]} Rb8 {[%emt 0:01:57]} 19. a5 {[%emt 0:01:07]} b5 {[%emt 0:00:53]} 20. axb6 {[%emt 0:00:02]} Rxb6 {[%emt 0:00:13]} 21. Na4 {[%emt 0:00:02]} Rb8 {[%emt 0:01:40]} 22. Ba5 {[%emt 0:00:33]} Na8 {[%emt 0:00:45]} 23. Bc3 {[%emt 0:01:56]} Bxc3+ {[%emt 0:00:48]} 24. Qxc3 {[%emt 0:00:24]} Nb6 {[%emt 0:01:14]} 25. Nxb6 {[%emt 0:00:07]} Rxb6 {[%emt 0:00:04]} 26. O-O {[%emt 0:00:13]} Qf7 {[%emt 0:00:24]} 27. e4 {[%emt 0:00:27]} Qg7 {[%emt 0:00:15]} 28. Rae1 {[%emt 0:01:22]} Rxb2 {[%emt 0:01:19]} 29. e5 {[%emt 0:00:10]} Rb8 {[%emt 0:00:43]} 30. Qa1 {[%emt 0:00:42]} dxe5 {[%emt 0:00:05]} 31. Qxe5 {[%emt 0:00:02]} Qxe5 {[%emt 0:00:10]} 32. Rxe5 {[%emt 0:00:02]} Ng8 {[%emt 0:00:12]} 33. d6 {[%emt 0:00:10]} Rd8 {[%emt 0:00:14]} 34. Rd1 {[%emt 0:00:01]} Rb3 {[%emt 0:01:10]} 35. Kf2 {[%emt 0:00:26]} g5 {[%emt 0:00:05]} 36. hxg5 {[%emt 0:00:03]} hxg5 {[%emt 0:00:01]} 37. Ne6 {[%emt 0:00:43]} Bxe6 {[%emt 0:00:15]} 38. Rxe6 {[%emt 0:00:02]} Rb6 {[%emt 0:00:08]} 39. Rd5 {[%emt 0:01:16]} g4 {[%emt 0:00:23]} 40. Be2 {[%emt 0:00:01]} Kg7 {[%emt 0:00:17]} 41. Bd3 {[%emt 0:00:25]} Nf6 {[%emt 0:00:20]} 42. Rxf5 {[%emt 0:00:36]} Rdxd6 {[%emt 0:00:01]} 43. Rxd6 {[%emt 0:00:09]} Rxd6 {[%emt 0:00:00]} 44. Ke3 {[%emt 0:00:02]} Re6+ {[%emt 0:00:24]} 45. Kf4 {[%emt 0:00:10]} Rd6 {[%emt 0:00:02]} 46. Ke3 {[%emt 0:00:08]} Re6+ {[%emt 0:00:00]} 47. Kf4 {[%emt 0:00:03]} Rd6 {[%emt 0:00:07]} 48. Ke3 {[%emt 0:00:27]} Re6+ {[%emt 0:00:22]} 49. Kd2 {[%emt 0:00:02]} Rd6 {[%emt 0:00:03]} 50. Kc3 {[%emt 0:00:05]} Rc6 {[%emt 0:00:06]} 51. Re5 {[%emt 0:00:14]} Kf7 {[%emt 0:00:05]} 52. Bf5 {[%emt 0:00:17]} a5 {[%emt 0:00:07]} 53. Kb3 {[%emt 0:00:07]} Nh5 {[%emt 0:00:32]} 54. Re3 {[%emt 0:00:18]} Nf6 {[%emt 0:00:13]} 55. Ka4 {[%emt 0:00:00]} Rb6 {[%emt 0:00:02]} 56. Kxa5 {[%emt 0:00:05]} Rb2 {[%emt 0:00:12]} 57. Be6+ {[%emt 0:00:09]} Kg6 {[%emt 0:00:08]} 58. Ka6 {[%emt 0:00:09]} Kh6 {[%emt 0:00:26]} 59. Ka5 {[%emt 0:00:21]} 1-0

[Event "FIDE Women World Rapid 2024"]
[Site "New York"]
[Date "2024.12.27"]
[Round "7.5"]
[White "Heinemann, Josefine"]
[Black "Toncheva, Nadya"]
[Result "1/2-1/2"]
[ECO "B30"]
[WhiteElo "2305"]
[BlackElo "2298"]
[Annotator "ChessBase"]
[PlyCount "167"]
[EventDate "2024.12.14"]
[EventType "swiss"]
[EventCountry "USA"]
[SourceTitle "playchess.com"]
[Source "ChessBase"]
[SourceQuality "1"]
[TimeControl "900+10"]

1. e4 {[%emt 0:00:02]} c5 {[%emt 0:00:01]} 2. Nf3 {[%emt 0:00:02]} Nc6 {[%emt 0:00:03]} 3. Bb5 {[%emt 0:00:01]} e6 {[%emt 0:00:02]} 4. O-O {[%emt 0:00:05]} Nge7 {[%emt 0:00:04]} 5. d4 {[%emt 0:00:03]} cxd4 {[%emt 0:00:05]} 6. Nxd4 {[%emt 0:00:01]} a6 {[%emt 0:00:05]} 7. Be2 {[%emt 0:00:23]} Nxd4 {[%emt 0:00:20]} 8. Qxd4 {[%emt 0:00:02]} Nc6 {[%emt 0:00:01]} 9. Qc3 {[%emt 0:00:04]} Qa5 {[%emt 0:00:44]} 10. Qxa5 {[%emt 0:01:16]} Nxa5 {[%emt 0:00:02]} 11. c4 {[%emt 0:00:02]} Be7 {[%emt 0:00:33]} 12. Nc3 {[%emt 0:00:03]} d6 {[%emt 0:00:57]} 13. Na4 {[%emt 0:00:51]} Bd7 {[%emt 0:01:01]} 14. Nb6 {[%emt 0:00:02]} Rd8 {[%emt 0:00:08]} 15. Nxd7 {[%emt 0:00:02]} Rxd7 {[%emt 0:00:14]} 16. Be3 {[%emt 0:00:10]} Bf6 {[%emt 0:00:17]} 17. Rab1 {[%emt 0:00:02]} O-O {[%emt 0:00:40]} 18. Rfd1 {[%emt 0:00:26]} Rc8 {[%emt 0:00:37]} 19. b3 {[%emt 0:00:23]} Kf8 {[%emt 0:00:21]} 20. f4 {[%emt 0:00:52]} Ke8 {[%emt 0:00:27]} 21. g4 {[%emt 0:00:40]} Nc6 {[%emt 0:00:12]} 22. g5 {[%emt 0:01:01]} Bc3 {[%emt 0:00:01]} 23. a3 {[%emt 0:00:03]} g6 {[%emt 0:01:23]} 24. Rd3 {[%emt 0:00:23]} Bg7 {[%emt 0:00:04]} 25. Rbd1 {[%emt 0:00:12]} Bb2 {[%emt 0:00:40]} 26. b4 {[%emt 0:00:26]} a5 {[%emt 0:04:12]} 27. e5 {[%emt 0:01:34]} axb4 {[%emt 0:01:45]} 28. axb4 {[%emt 0:00:01]} d5 {[%emt 0:01:39]} 29. b5 {[%emt 0:03:00]} Ne7 {[%emt 0:00:29]} 30. Rb1 {[%emt 0:01:57]} d4 {[%emt 0:00:05]} 31. Rxb2 {[%emt 0:01:15]} dxe3 {[%emt 0:00:02]} 32. Rxe3 {[%emt 0:00:01]} Rd4 {[%emt 0:00:24]} 33. Rh3 {[%emt 0:00:36]} Rxf4 {[%emt 0:00:14]} 34. Rxh7 {[%emt 0:00:01]} Rd4 {[%emt 0:01:01]} 35. Ra2 {[%emt 0:00:46]} Rc5 {[%emt 0:00:42]} 36. Ra8+ {[%emt 0:01:01]} Kd7 {[%emt 0:00:01]} 37. Rxf7 {[%emt 0:00:01]} Rxe5 {[%emt 0:00:04]} 38. Bf3 {[%emt 0:00:56]} Rxg5+ {[%emt 0:00:48]} 39. Kf2 {[%emt 0:00:05]} Rf5 {[%emt 0:00:25]} 40. Rxf5 {[%emt 0:00:01]} Nxf5 {[%emt 0:00:11]} 41. c5 {[%emt 0:00:02]} Rd2+ {[%emt 0:00:13]} 42. Ke1 {[%emt 0:00:04]} Rc2 {[%emt 0:00:04]} 43. c6+ {[%emt 0:01:12]} bxc6 {[%emt 0:00:02]} 44. bxc6+ {[%emt 0:00:00]} Kd6 {[%emt 0:00:05]} 45. Rd8+ {[%emt 0:00:12]} Ke5 {[%emt 0:00:06]} 46. Rd2 {[%emt 0:00:49]} Rc3 {[%emt 0:00:10]} 47. Bg2 {[%emt 0:00:21]} Nd4 {[%emt 0:00:08]} 48. Kf2 {[%emt 0:00:26]} Nxc6 {[%emt 0:00:07]} 49. Re2+ {[%emt 0:00:02]} Kf6 {[%emt 0:00:04]} 50. Re3 {[%emt 0:00:19]} Rc2+ {[%emt 0:00:11]} 51. Re2 {[%emt 0:00:02]} Rc1 {[%emt 0:00:11]} 52. Re1 {[%emt 0:00:03]} Rc5 {[%emt 0:00:02]} 53. Bxc6 {[%emt 0:00:20]} Rxc6 {[%emt 0:00:01]} 54. h4 {[%emt 0:00:04]} Kf5 {[%emt 0:00:26]} 55. Re3 {[%emt 0:00:14]} e5 {[%emt 0:00:12]} 56. Kf3 {[%emt 0:00:01]} e4+ {[%emt 0:00:12]} 57. Kg3 {[%emt 0:00:47]} Rd6 {[%emt 0:00:02]} 58. Re1 {[%emt 0:00:01]} Rd3+ {[%emt 0:00:03]} 59. Kg2 {[%emt 0:00:06]} Kf4 {[%emt 0:00:07]} 60. Rf1+ {[%emt 0:00:06]} Rf3 {[%emt 0:00:16]} 61. Ra1 {[%emt 0:00:01]} Rg3+ {[%emt 0:00:05]} 62. Kh2 {[%emt 0:00:01]} e3 {[%emt 0:00:28]} 63. Ra8 {[%emt 0:00:28]} Rg4 {[%emt 0:00:54]} 64. Kh3 {[%emt 0:00:10]} Rg1 {[%emt 0:00:09]} 65. Rf8+ {[%emt 0:00:09]} Ke4 {[%emt 0:00:03]} 66. Kh2 {[%emt 0:00:06]} Ra1 {[%emt 0:00:09]} 67. Re8+ {[%emt 0:00:25]} Kf3 {[%emt 0:00:07]} 68. Rf8+ {[%emt 0:00:03]} Kg4 {[%emt 0:00:27]} 69. Re8 {[%emt 0:00:05]} Ra2+ {[%emt 0:00:03]} 70. Kg1 {[%emt 0:00:06]} e2 {[%emt 0:00:09]} 71. Kf2 {[%emt 0:00:58]} Kxh4 {[%emt 0:00:02]} 72. Re4+ {[%emt 0:00:08]} Kg5 {[%emt 0:00:09]} 73. Re3 {[%emt 0:00:03]} Kh4 {[%emt 0:00:31]} 74. Re4+ {[%emt 0:00:01]} Kh5 {[%emt 0:00:02]} 75. Re3 {[%emt 0:00:26]} g5 {[%emt 0:00:03]} 76. Rh3+ {[%emt 0:00:01]} Kg4 {[%emt 0:00:02]} 77. Rg3+ {[%emt 0:00:00]} Kh4 {[%emt 0:00:02]} 78. Re3 {[%emt 0:00:28]} g4 {[%emt 0:00:07]} 79. Re4 {[%emt 0:00:11]} Kh3 {[%emt 0:00:09]} 80. Re8 {[%emt 0:00:18]} g3+ {[%emt 0:00:02]} 81. Ke1 {[%emt 0:00:00]} g2 {[%emt 0:00:17]} 82. Rh8+ {[%emt 0:00:22]} Kg3 {[%emt 0:00:01]} 83. Rg8+ {[%emt 0:00:01]} Kh2 {[%emt 0:00:40]} 84. Rxg2+ {[%emt 0:00:05]} 1/2-1/2

[Event "FIDE Women World Rapid 2024"]
[Site "New York"]
[Date "2024.12.27"]
[Round "7.6"]
[White "Yip, Carissa"]
[Black "Lee, Alice"]
[Result "1-0"]
[ECO "B58"]
[WhiteElo "2432"]
[BlackElo "2398"]
[Annotator "ChessBase"]
[PlyCount "105"]
[EventDate "2024.12.14"]
[EventType "swiss"]
[EventCountry "USA"]
[SourceTitle "playchess.com"]
[Source "ChessBase"]
[SourceQuality "1"]
[TimeControl "900+10"]

1. e4 {[%emt 0:00:01]} c5 {[%emt 0:00:10]} 2. Nf3 {[%emt 0:00:02]} Nc6 {[%emt 0:00:02]} 3. d4 {[%emt 0:00:02]} cxd4 {[%emt 0:00:02]} 4. Nxd4 {[%emt 0:00:01]} Nf6 {[%emt 0:00:02]} 5. Nc3 {[%emt 0:00:01]} e5 {[%emt 0:00:01]} 6. Ndb5 {[%emt 0:00:02]} d6 {[%emt 0:00:01]} 7. Be2 {[%emt 0:00:01]} a6 {[%emt 0:00:59]} 8. Na3 {[%emt 0:00:01]} b5 {[%emt 0:00:04]} 9. Nd5 {[%emt 0:00:01]} Be7 {[%emt 0:01:43]} 10. Be3 {[%emt 0:01:25]} Rb8 {[%emt 0:00:44]} 11. c4 {[%emt 0:01:36]} b4 {[%emt 0:00:33]} 12. Nxf6+ {[%emt 0:00:56]} gxf6 {[%emt 0:01:10]} 13. Nc2 {[%emt 0:00:02]} f5 {[%emt 0:00:03]} 14. exf5 {[%emt 0:00:16]} Bxf5 {[%emt 0:00:08]} 15. Bf3 {[%emt 0:00:02]} Qc7 {[%emt 0:00:40]} 16. O-O {[%emt 0:00:46]} Bf6 {[%emt 0:01:17]} 17. Re1 {[%emt 0:01:31]} Bg7 {[%emt 0:01:40]} 18. c5 {[%emt 0:02:43]} Rd8 {[%emt 0:03:25]} 19. cxd6 {[%emt 0:00:05]} Rxd6 {[%emt 0:00:11]} 20. Qc1 {[%emt 0:00:02]} Qa5 {[%emt 0:01:13]} 21. Na3 {[%emt 0:01:42]} bxa3 {[%emt 0:00:26]} 22. Bxc6+ {[%emt 0:00:01]} Bd7 {[%emt 0:00:20]} 23. b4 {[%emt 0:00:42]} Qc7 {[%emt 0:02:17]} 24. Bxd7+ {[%emt 0:00:02]} Rxd7 {[%emt 0:01:05]} 25. Qxa3 {[%emt 0:00:03]} Qb7 {[%emt 0:00:13]} 26. Bc5 {[%emt 0:00:04]} f6 {[%emt 0:00:09]} 27. Rad1 {[%emt 0:00:08]} Bf8 {[%emt 0:00:23]} 28. Rxd7 {[%emt 0:00:53]} Kxd7 {[%emt 0:00:02]} 29. Qh3+ {[%emt 0:01:30]} Kc7 {[%emt 0:00:14]} 30. Bxf8 {[%emt 0:00:17]} Rxf8 {[%emt 0:00:01]} 31. Qxh7+ {[%emt 0:00:01]} Kb8 {[%emt 0:00:01]} 32. Qxb7+ {[%emt 0:00:03]} Kxb7 {[%emt 0:00:02]} 33. Rd1 {[%emt 0:00:09]} Kc6 {[%emt 0:00:01]} 34. a3 {[%emt 0:00:07]} Kb5 {[%emt 0:00:12]} 35. Rd5+ {[%emt 0:00:06]} Kc4 {[%emt 0:00:10]} 36. Ra5 {[%emt 0:00:11]} Rd8 {[%emt 0:00:07]} 37. h4 {[%emt 0:00:06]} Rd6 {[%emt 0:00:13]} 38. h5 {[%emt 0:00:21]} e4 {[%emt 0:00:11]} 39. g4 {[%emt 0:00:36]} Rd1+ {[%emt 0:00:11]} 40. Kg2 {[%emt 0:00:01]} Rd2 {[%emt 0:00:01]} 41. Kg3 {[%emt 0:00:01]} Rd3+ {[%emt 0:00:05]} 42. Kf4 {[%emt 0:00:02]} Kd4 {[%emt 0:00:08]} 43. Kf5 {[%emt 0:00:29]} Rf3+ {[%emt 0:00:02]} 44. Kg6 {[%emt 0:00:01]} Rxf2 {[%emt 0:00:04]} 45. Rxa6 {[%emt 0:01:08]} e3 {[%emt 0:00:30]} 46. Re6 {[%emt 0:00:02]} Rf4 {[%emt 0:00:24]} 47. h6 {[%emt 0:00:01]} Rxg4+ {[%emt 0:00:08]} 48. Kxf6 {[%emt 0:00:03]} Rf4+ {[%emt 0:00:28]} 49. Kg5 {[%emt 0:00:02]} Rf1 {[%emt 0:00:33]} 50. h7 {[%emt 0:00:02]} Rg1+ {[%emt 0:00:01]} 51. Kh6 {[%emt 0:00:15]} Rh1+ {[%emt 0:00:13]} 52. Kg7 {[%emt 0:00:01]} Rg1+ {[%emt 0:00:32]} 53. Rg6 {[%emt 0:00:02]} 1-0

[Event "FIDE Women World Rapid 2024"]
[Site "New York"]
[Date "2024.12.27"]
[Round "7.6"]
[White "Uuriintuya, Uurtsaikh"]
[Black "Mungunzul, Bat-Erdene"]
[Result "0-1"]
[ECO "C90"]
[WhiteElo "2187"]
[BlackElo "2268"]
[Annotator "ChessBase"]
[PlyCount "90"]
[EventDate "2024.12.14"]
[EventType "swiss"]
[EventCountry "USA"]
[SourceTitle "playchess.com"]
[Source "ChessBase"]
[SourceQuality "1"]
[TimeControl "900+10"]

1. e4 {[%emt 0:00:03]} e5 {[%emt 0:00:01]} 2. Nf3 {[%emt 0:00:02]} Nc6 {[%emt 0:00:03]} 3. Bb5 {[%emt 0:00:04]} a6 {[%emt 0:00:02]} 4. Ba4 {[%emt 0:00:02]} Nf6 {[%emt 0:00:02]} 5. d3 {[%emt 0:00:02]} b5 {[%emt 0:00:03]} 6. Bb3 {[%emt 0:00:02]} Be7 {[%emt 0:00:02]} 7. O-O {[%emt 0:00:10]} d6 {[%emt 0:00:01]} 8. c3 {[%emt 0:00:03]} O-O {[%emt 0:00:03]} 9. Re1 {[%emt 0:00:08]} Nb8 {[%emt 0:00:01]} 10. Nbd2 {[%emt 0:00:07]} Nbd7 {[%emt 0:00:02]} 11. Nf1 {[%emt 0:00:05]} Nc5 {[%emt 0:00:05]} 12. Bc2 {[%emt 0:00:01]} Re8 {[%emt 0:00:02]} 13. d4 {[%emt 0:00:30]} Ncd7 {[%emt 0:00:02]} 14. Ng3 {[%emt 0:00:57]} Bf8 {[%emt 0:00:02]} 15. Nf5 {[%emt 0:00:29]} Bb7 {[%emt 0:01:09]} 16. d5 {[%emt 0:03:02]} Nb6 {[%emt 0:00:31]} 17. a4 {[%emt 0:00:38]} c6 {[%emt 0:01:06]} 18. dxc6 {[%emt 0:00:55]} Bxc6 {[%emt 0:00:03]} 19. axb5 {[%emt 0:00:12]} axb5 {[%emt 0:00:32]} 20. Bg5 {[%emt 0:00:17]} Rxa1 {[%emt 0:02:03]} 21. Qxa1 {[%emt 0:00:04]} Nbd7 {[%emt 0:00:07]} 22. Nd2 {[%emt 0:01:54]} h6 {[%emt 0:00:31]} 23. Bh4 {[%emt 0:00:07]} Qb6 {[%emt 0:00:50]} 24. Bb3 {[%emt 0:00:28]} Ra8 {[%emt 0:01:42]} 25. Qb1 {[%emt 0:01:00]} g6 {[%emt 0:00:11]} 26. Ne3 {[%emt 0:00:13]} Bg7 {[%emt 0:00:34]} 27. f3 {[%emt 0:00:17]} Nc5 {[%emt 0:00:16]} 28. Bc2 {[%emt 0:00:18]} Qa7 {[%emt 0:01:09]} 29. c4 {[%emt 0:00:50]} b4 {[%emt 0:00:14]} 30. Nb3 {[%emt 0:00:15]} Nfd7 {[%emt 0:01:07]} 31. Bf2 {[%emt 0:00:13]} Qa6 {[%emt 0:00:38]} 32. Qd1 {[%emt 0:00:34]} Bf8 {[%emt 0:00:09]} 33. Qd2 {[%emt 0:00:03]} Qa2 {[%emt 0:01:35]} 34. Qxb4 {[%emt 0:00:58]} Rb8 {[%emt 0:00:12]} 35. Qa5 {[%emt 0:00:05]} Qxb2 {[%emt 0:04:12]} 36. Rb1 {[%emt 0:00:17]} Nxb3 {[%emt 0:00:18]} 37. Qa6 {[%emt 0:01:52]} Qc3 {[%emt 0:00:31]} 38. Rxb3 {[%emt 0:00:51]} Rxb3 {[%emt 0:00:06]} 39. Bxb3 {[%emt 0:00:02]} Qxb3 {[%emt 0:00:03]} 40. Qxc6 {[%emt 0:00:03]} Nc5 {[%emt 0:00:03]} 41. h4 {[%emt 0:01:23]} Nd3 {[%emt 0:00:12]} 42. Qb5 {[%emt 0:00:20]} Qc3 {[%emt 0:00:32]} 43. Qb1 {[%emt 0:00:45]} Nxf2 {[%emt 0:00:15]} 44. Kxf2 {[%emt 0:00:03]} Qd2+ {[%emt 0:00:01]} 45. Kf1 {[%emt 0:00:29]} Qxe3 {[%emt 0:00:02]} 0-1

[Event "FIDE Women World Rapid 2024"]
[Site "New York"]
[Date "2024.12.27"]
[Round "7.7"]
[White "Batsiashvili, Nino"]
[Black "Zhao, Xue"]
[Result "1-0"]
[ECO "D37"]
[WhiteElo "2476"]
[BlackElo "2442"]
[Annotator "ChessBase"]
[PlyCount "93"]
[EventDate "2024.12.14"]
[EventType "swiss"]
[EventCountry "USA"]
[SourceTitle "playchess.com"]
[Source "ChessBase"]
[SourceQuality "1"]
[TimeControl "900+10"]

1. d4 {[%emt 0:00:01]} d5 {[%emt 0:00:11]} 2. c4 {[%emt 0:00:01]} e6 {[%emt 0:00:01]} 3. Nf3 {[%emt 0:00:05]} Nf6 {[%emt 0:00:03]} 4. Nc3 {[%emt 0:00:01]} a6 {[%emt 0:00:01]} 5. cxd5 {[%emt 0:00:03]} exd5 {[%emt 0:00:01]} 6. Bg5 {[%emt 0:00:01]} Be6 {[%emt 0:00:05]} 7. Bxf6 {[%emt 0:00:02]} Qxf6 {[%emt 0:00:03]} 8. Qb3 {[%emt 0:00:02]} Ra7 {[%emt 0:02:10]} 9. h4 {[%emt 0:00:09]} h6 {[%emt 0:01:04]} 10. a3 {[%emt 0:00:48]} Qd8 {[%emt 0:01:10]} 11. Qc2 {[%emt 0:00:16]} Nd7 {[%emt 0:00:37]} 12. O-O-O {[%emt 0:01:59]} Be7 {[%emt 0:00:39]} 13. e4 {[%emt 0:01:26]} dxe4 {[%emt 0:00:14]} 14. Nxe4 {[%emt 0:00:01]} c6 {[%emt 0:00:50]} 15. Bd3 {[%emt 0:00:15]} a5 {[%emt 0:00:19]} 16. Nc3 {[%emt 0:01:35]} Nb6 {[%emt 0:02:07]} 17. Qe2 {[%emt 0:00:41]} a4 {[%emt 0:00:19]} 18. Rhe1 {[%emt 0:02:02]} Ra5 {[%emt 0:00:39]} 19. Ne5 {[%emt 0:01:43]} Qxd4 {[%emt 0:04:10]} 20. Nxf7 {[%emt 0:03:20]} Qf4+ {[%emt 0:00:01]} 21. Kb1 {[%emt 0:00:01]} Qxf7 {[%emt 0:00:14]} 22. Qxe6 {[%emt 0:00:03]} Qxe6 {[%emt 0:00:05]} 23. Rxe6 {[%emt 0:00:01]} Kf7 {[%emt 0:00:19]} 24. Rde1 {[%emt 0:00:37]} Bf6 {[%emt 0:00:01]} 25. g4 {[%emt 0:00:21]} Rd8 {[%emt 0:00:18]} 26. Bc2 {[%emt 0:00:04]} g5 {[%emt 0:01:40]} 27. h5 {[%emt 0:00:08]} Nc4 {[%emt 0:00:18]} 28. Nxa4 {[%emt 0:01:56]} Rb5 {[%emt 0:00:01]} 29. Bg6+ {[%emt 0:00:27]} Kg7 {[%emt 0:00:04]} 30. Kc1 {[%emt 0:00:48]} Ne5 {[%emt 0:02:05]} 31. Bf5 {[%emt 0:00:24]} Nd3+ {[%emt 0:00:13]} 32. Bxd3 {[%emt 0:00:02]} Rxd3 {[%emt 0:00:00]} 33. R6e3 {[%emt 0:00:23]} Rd4 {[%emt 0:00:08]} 34. Re4 {[%emt 0:00:01]} Rbd5 {[%emt 0:00:21]} 35. Nc3 {[%emt 0:00:04]} Rc5 {[%emt 0:00:00]} 36. Kc2 {[%emt 0:00:09]} Rd7 {[%emt 0:00:07]} 37. R1e3 {[%emt 0:00:09]} Rf7 {[%emt 0:00:08]} 38. f3 {[%emt 0:00:11]} Bxc3 {[%emt 0:00:09]} 39. bxc3 {[%emt 0:00:01]} Ra5 {[%emt 0:00:03]} 40. a4 {[%emt 0:00:07]} Ra8 {[%emt 0:00:07]} 41. Kb3 {[%emt 0:00:14]} Rd8 {[%emt 0:00:05]} 42. Re6 {[%emt 0:00:02]} Rf6 {[%emt 0:00:17]} 43. Re7+ {[%emt 0:00:06]} Rf7 {[%emt 0:00:01]} 44. R3e6 {[%emt 0:00:07]} Rd3 {[%emt 0:00:15]} 45. Rxf7+ {[%emt 0:00:10]} Kxf7 {[%emt 0:00:01]} 46. Rxh6 {[%emt 0:00:01]} Rxf3 {[%emt 0:00:01]} 47. Rg6 {[%emt 0:00:02]} 1-0

[Event "FIDE Women World Rapid 2024"]
[Site "New York"]
[Date "2024.12.27"]
[Round "7.7"]
[White "Nurgaliyeva, Zarina"]
[Black "Padmini, Rout"]
[Result "1/2-1/2"]
[ECO "B22"]
[WhiteElo "2263"]
[BlackElo "2339"]
[Annotator "ChessBase"]
[PlyCount "115"]
[EventDate "2024.12.14"]
[EventType "swiss"]
[EventCountry "USA"]
[SourceTitle "playchess.com"]
[Source "ChessBase"]
[SourceQuality "1"]
[TimeControl "900+10"]

1. e4 {[%emt 0:00:02]} c5 {[%emt 0:00:01]} 2. Nf3 {[%emt 0:00:02]} e6 {[%emt 0:00:13]} 3. c3 {[%emt 0:00:11]} Nf6 {[%emt 0:00:04]} 4. e5 {[%emt 0:00:01]} Nd5 {[%emt 0:00:01]} 5. d4 {[%emt 0:00:01]} cxd4 {[%emt 0:00:02]} 6. cxd4 {[%emt 0:00:03]} d6 {[%emt 0:00:06]} 7. Bc4 {[%emt 0:00:03]} Nb6 {[%emt 0:00:35]} 8. Bd3 {[%emt 0:00:16]} Nc6 {[%emt 0:00:32]} 9. O-O {[%emt 0:00:11]} dxe5 {[%emt 0:00:45]} 10. dxe5 {[%emt 0:00:01]} Nb4 {[%emt 0:00:04]} 11. Be4 {[%emt 0:00:01]} Qxd1 {[%emt 0:00:08]} 12. Rxd1 {[%emt 0:00:02]} N4d5 {[%emt 0:00:01]} 13. a4 {[%emt 0:00:08]} a5 {[%emt 0:00:20]} 14. Nc3 {[%emt 0:00:02]} Nxc3 {[%emt 0:00:13]} 15. bxc3 {[%emt 0:00:01]} Bd7 {[%emt 0:00:04]} 16. Bxb7 {[%emt 0:03:06]} Rb8 {[%emt 0:00:02]} 17. Be4 {[%emt 0:00:08]} Bc5 {[%emt 0:00:08]} 18. Bc2 {[%emt 0:01:00]} O-O {[%emt 0:01:27]} 19. Ng5 {[%emt 0:00:31]} h6 {[%emt 0:00:02]} 20. Ne4 {[%emt 0:00:02]} Rfc8 {[%emt 0:00:16]} 21. Ba3 {[%emt 0:02:02]} Bxa4 {[%emt 0:01:32]} 22. Bxa4 {[%emt 0:04:06]} Nxa4 {[%emt 0:00:06]} 23. Bxc5 {[%emt 0:00:02]} Nxc5 {[%emt 0:00:02]} 24. Nd6 {[%emt 0:00:01]} Rc7 {[%emt 0:00:52]} 25. Rxa5 {[%emt 0:01:05]} Nb3 {[%emt 0:00:25]} 26. Rb5 {[%emt 0:02:41]} Rxb5 {[%emt 0:00:10]} 27. Nxb5 {[%emt 0:00:01]} Rc5 {[%emt 0:00:07]} 28. Rd8+ {[%emt 0:00:17]} Kh7 {[%emt 0:00:02]} 29. Nd6 {[%emt 0:00:01]} Rxe5 {[%emt 0:00:38]} 30. f4 {[%emt 0:00:26]} Rc5 {[%emt 0:00:48]} 31. Rc8 {[%emt 0:01:09]} Ra5 {[%emt 0:03:32]} 32. Nxf7 {[%emt 0:00:12]} Kg6 {[%emt 0:00:06]} 33. Nd6 {[%emt 0:00:33]} Ra4 {[%emt 0:00:27]} 34. g3 {[%emt 0:00:26]} Ra2 {[%emt 0:00:08]} 35. Ne4 {[%emt 0:00:45]} Nd2 {[%emt 0:01:15]} 36. Nxd2 {[%emt 0:00:41]} Rxd2 {[%emt 0:00:02]} 37. Rc5 {[%emt 0:00:34]} Rc2 {[%emt 0:00:11]} 38. c4 {[%emt 0:00:12]} Kf6 {[%emt 0:00:06]} 39. h4 {[%emt 0:00:17]} g6 {[%emt 0:01:12]} 40. g4 {[%emt 0:00:13]} Ke7 {[%emt 0:00:37]} 41. Rc7+ {[%emt 0:00:08]} Kd6 {[%emt 0:00:05]} 42. Rg7 {[%emt 0:00:13]} h5 {[%emt 0:01:03]} 43. Rxg6 {[%emt 0:00:07]} hxg4 {[%emt 0:00:01]} 44. Rxg4 {[%emt 0:00:04]} Rxc4 {[%emt 0:00:08]} 45. h5 {[%emt 0:00:15]} Rc7 {[%emt 0:00:26]} 46. Kg2 {[%emt 0:00:12]} Rh7 {[%emt 0:00:49]} 47. Rg5 {[%emt 0:00:05]} Ke7 {[%emt 0:00:01]} 48. Kg3 {[%emt 0:00:06]} Kf6 {[%emt 0:00:01]} 49. Kg4 {[%emt 0:00:05]} Rh8 {[%emt 0:00:15]} 50. Rg6+ {[%emt 0:00:13]} Kf7 {[%emt 0:00:06]} 51. Kg5 {[%emt 0:00:07]} Ra8 {[%emt 0:00:26]} 52. Rf6+ {[%emt 0:00:18]} Ke7 {[%emt 0:00:07]} 53. h6 {[%emt 0:00:06]} Ra1 {[%emt 0:00:11]} 54. Rg6 {[%emt 0:00:24]} Rg1+ {[%emt 0:00:02]} 55. Kh5 {[%emt 0:00:01]} Rh1+ {[%emt 0:00:05]} 56. Kg4 {[%emt 0:00:01]} Rg1+ {[%emt 0:00:01]} 57. Kh5 {[%emt 0:00:01]} Rh1+ {[%emt 0:00:02]} 58. Kg5 {[%emt 0:00:02]} 1/2-1/2